[Event "Titled Tuesday Blitz January 03 Late 2023"]
[White "Shuvalova, Polina"]
[Black "Novikov, Evgenij"]
[WhiteFideId "24171760"]
[BlackFideId "4125380"]
[WhiteElo "2484"]
[BlackElo "2276"]
[Result "1-0"]
[Round "10"]
[TimeControl "180+2"]
[Date "2023.01.03"]
[WhiteClock "0:00:18"]
[BlackClock "0:00:13"]

1. d4 {[%clk 0:03:00]}  d5 {[%clk 0:02:59]} 2. Nf3 {[%clk 0:03:00]}  Nf6 {[%clk 0:02:58]} 3. Bf4 {[%clk 0:03:01]}  c5 {[%clk 0:02:58]} 4. e3 {[%clk 0:03:01]}  cxd4 {[%clk 0:02:59]} 5. exd4 {[%clk 0:03:01]}  Nc6 {[%clk 0:02:59]} 6. Nbd2 {[%clk 0:03:00]}  Bg4 {[%clk 0:02:59]} 7. c3 {[%clk 0:02:59]}  Bxf3 {[%clk 0:02:43]} 8. Nxf3 {[%clk 0:02:58]}  e6 {[%clk 0:02:43]} 9. Qb3 {[%clk 0:02:48]}  Qc8 {[%clk 0:02:30]} 10. Bd3 {[%clk 0:02:44]}  Be7 {[%clk 0:02:29]} 11. O-O {[%clk 0:02:43]}  O-O {[%clk 0:02:29]} 12. Rfe1 {[%clk 0:02:43]}  a6 {[%clk 0:02:23]} 13. a4 {[%clk 0:02:41]}  Rd8 {[%clk 0:02:17]} 14. Qc2 {[%clk 0:02:31]}  Qd7 {[%clk 0:02:09]} 15. Ne5 {[%clk 0:02:30]}  Qe8 {[%clk 0:02:07]} 16. Bg5 {[%clk 0:02:26]}  g6 {[%clk 0:01:54]} 17. f4 {[%clk 0:02:15]}  Qf8 {[%clk 0:01:40]} 18. Qf2 {[%clk 0:02:00]}  h6 {[%clk 0:01:29]} 19. Bh4 {[%clk 0:01:35]}  Nh7 {[%clk 0:01:14]} 20. Re3 {[%clk 0:01:29]}  Rac8 {[%clk 0:00:50]} 21. Rae1 {[%clk 0:01:25]}  Bf6 {[%clk 0:00:44]} 22. Bxf6 {[%clk 0:01:15]}  Nxf6 {[%clk 0:00:45]} 23. Qh4 {[%clk 0:01:14]}  Qg7 {[%clk 0:00:43]} 24. Nxg6 {[%clk 0:01:08]}  fxg6 {[%clk 0:00:39]} 25. Rg3 {[%clk 0:00:59]}  Ne4 {[%clk 0:00:34]} 26. Bxe4 {[%clk 0:00:51]}  dxe4 {[%clk 0:00:34]} 27. Rxe4 {[%clk 0:00:52]}  Nxd4 {[%clk 0:00:21]} 28. cxd4 {[%clk 0:00:39]}  Rc1+ {[%clk 0:00:20]} 29. Kf2 {[%clk 0:00:37]}  Rxd4 {[%clk 0:00:21]} 30. Re2 {[%clk 0:00:21]}  g5 {[%clk 0:00:17]} 31. Qh5 {[%clk 0:00:17]}  Rxf4+ {[%clk 0:00:16]} 32. Rf3 {[%clk 0:00:18]}  Qd4+ {[%clk 0:00:17]} 33. Kg3 {[%clk 0:00:18]}  Rg4+ {[%clk 0:00:17]} 34. Qxg4 {[%clk 0:00:18]}  Qd6+ {[%clk 0:00:14]} 35. Kh3 {[%clk 0:00:17]}  Rh1 {[%clk 0:00:13]} 36. Qxe6+ {[%clk 0:00:17]}  Qxe6+ {[%clk 0:00:13]} 37. Rxe6 {[%clk 0:00:18]} 1-0


[Site "https://www.chess.com"]

[Event "Titled Tuesday Blitz January 03 Late 2023"]
[White "Espinosa, Pedro"]
[Black "Kalajzic, Ivan"]
[WhiteFideId "30921066"]
[BlackFideId "14506378"]
[WhiteElo "2229"]
[BlackElo "2062"]
[Result "1/2-1/2"]
[Round "10"]
[TimeControl "180+2"]
[Date "2023.01.03"]
[WhiteClock "0:00:12"]
[BlackClock "0:00:09"]

1. d4 {[%clk 0:02:59]}  Nc6 {[%clk 0:02:56]} 2. Nf3 {[%clk 0:02:58]}  d6 {[%clk 0:02:54]} 3. e4 {[%clk 0:02:56]}  Bg4 {[%clk 0:02:54]} 4. Be2 {[%clk 0:02:55]}  e5 {[%clk 0:02:53]} 5. d5 {[%clk 0:02:53]}  Nce7 {[%clk 0:02:53]} 6. O-O {[%clk 0:02:52]}  Nf6 {[%clk 0:02:53]} 7. Nc3 {[%clk 0:02:52]}  g6 {[%clk 0:02:54]} 8. h3 {[%clk 0:02:52]}  Bd7 {[%clk 0:02:53]} 9. Bg5 {[%clk 0:02:50]}  Bg7 {[%clk 0:02:53]} 10. Qd2 {[%clk 0:02:50]}  O-O {[%clk 0:02:54]} 11. Bh6 {[%clk 0:02:48]}  b5 {[%clk 0:02:54]} 12. Bxg7 {[%clk 0:02:47]}  Kxg7 {[%clk 0:02:55]} 13. a3 {[%clk 0:02:20]}  a5 {[%clk 0:02:54]} 14. Bxb5 {[%clk 0:02:14]}  Bxb5 {[%clk 0:02:53]} 15. Nxb5 {[%clk 0:02:15]}  Nxe4 {[%clk 0:02:53]} 16. Qe3 {[%clk 0:02:12]}  Nf6 {[%clk 0:02:46]} 17. c4 {[%clk 0:02:12]}  Qb8 {[%clk 0:02:38]} 18. a4 {[%clk 0:02:09]}  h6 {[%clk 0:02:24]} 19. Rac1 {[%clk 0:02:08]}  Nd7 {[%clk 0:02:21]} 20. b3 {[%clk 0:02:05]}  Nf5 {[%clk 0:02:11]} 21. Qc3 {[%clk 0:02:02]}  Nc5 {[%clk 0:02:07]} 22. Rfe1 {[%clk 0:01:56]}  Qd8 {[%clk 0:01:59]} 23. g4 {[%clk 0:01:51]}  Nh4 {[%clk 0:01:33]} 24. Nxh4 {[%clk 0:01:51]}  Qxh4 {[%clk 0:01:34]} 25. Nxc7 {[%clk 0:01:50]}  Ra7 {[%clk 0:01:21]} 26. Nb5 {[%clk 0:01:50]}  Rd7 {[%clk 0:01:19]} 27. Rb1 {[%clk 0:01:33]}  f5 {[%clk 0:01:17]} 28. Qg3 {[%clk 0:01:28]}  Qxg3+ {[%clk 0:01:12]} 29. fxg3 {[%clk 0:01:29]}  fxg4 {[%clk 0:01:12]} 30. hxg4 {[%clk 0:01:29]}  Rf3 {[%clk 0:01:10]} 31. Kg2 {[%clk 0:01:27]}  Rdf7 {[%clk 0:00:47]} 32. Re2 {[%clk 0:01:17]}  Nxb3 {[%clk 0:00:34]} 33. Nxd6 {[%clk 0:01:15]}  Rf8 {[%clk 0:00:27]} 34. Rxe5 {[%clk 0:01:01]}  Rf2+ {[%clk 0:00:27]} 35. Kg1 {[%clk 0:00:54]}  Nd2 {[%clk 0:00:27]} 36. Rb7+ {[%clk 0:00:50]}  Kg8 {[%clk 0:00:27]} 37. Re8 {[%clk 0:00:41]}  Rf1+ {[%clk 0:00:20]} 38. Kg2 {[%clk 0:00:40]}  Rf2+ {[%clk 0:00:19]} 39. Kh3 {[%clk 0:00:31]}  Nf3 {[%clk 0:00:17]} 40. Rxf8+ {[%clk 0:00:31]}  Kxf8 {[%clk 0:00:18]} 41. Rf7+ {[%clk 0:00:25]}  Kg8 {[%clk 0:00:17]} 42. Rxf3 {[%clk 0:00:16]}  Rxf3 {[%clk 0:00:18]} 43. c5 {[%clk 0:00:17]}  Rd3 {[%clk 0:00:16]} 44. c6 {[%clk 0:00:16]}  Rc3 {[%clk 0:00:09]} 45. Nb5 {[%clk 0:00:15]}  Rc5 {[%clk 0:00:08]} 46. d6 {[%clk 0:00:09]}  Kf8 {[%clk 0:00:05]} 47. c7 {[%clk 0:00:06]}  Ke8 {[%clk 0:00:04]} 48. Na7 {[%clk 0:00:06]}  Kd7 {[%clk 0:00:04]} 49. c8=Q+ {[%clk 0:00:07]}  Rxc8 {[%clk 0:00:04]} 50. Nxc8 {[%clk 0:00:08]}  Kxc8 {[%clk 0:00:05]} 51. g5 {[%clk 0:00:09]}  h5 {[%clk 0:00:04]} 52. g4 {[%clk 0:00:05]}  hxg4+ {[%clk 0:00:04]} 53. Kxg4 {[%clk 0:00:05]}  Kd7 {[%clk 0:00:05]} 54. Kf4 {[%clk 0:00:06]}  Kxd6 {[%clk 0:00:05]} 55. Ke4 {[%clk 0:00:07]}  Kc5 {[%clk 0:00:06]} 56. Ke5 {[%clk 0:00:07]}  Kb4 {[%clk 0:00:06]} 57. Kf6 {[%clk 0:00:08]}  Kxa4 {[%clk 0:00:07]} 58. Kxg6 {[%clk 0:00:09]}  Kb4 {[%clk 0:00:06]} 59. Kf5 {[%clk 0:00:10]}  a4 {[%clk 0:00:07]} 60. g6 {[%clk 0:00:10]}  a3 {[%clk 0:00:07]} 61. g7 {[%clk 0:00:11]}  a2 {[%clk 0:00:08]} 62. g8=Q {[%clk 0:00:11]}  a1=Q {[%clk 0:00:09]} 63. Qb8+ {[%clk 0:00:11]}  Ka3 {[%clk 0:00:09]} 64. Qa7+ {[%clk 0:00:12]}  Kb2 {[%clk 0:00:09]} 65. Qxa1+ {[%clk 0:00:12]}  Kxa1 {[%clk 0:00:09]} 1/2-1/2


[Site "https://www.chess.com"]

[Event "Titled Tuesday Blitz January 03 Late 2023"]
[White "Gurevich, Dmitry"]
[Black "Paspuel, Trosky"]
[WhiteFideId "2000407"]
[BlackFideId "3602150"]
[WhiteElo "2393"]
[BlackElo "1721"]
[Result "1-0"]
[Round "10"]
[TimeControl "180+2"]
[Date "2023.01.03"]
[WhiteClock "0:01:44"]
[BlackClock "0:00:20"]

1. d4 {[%clk 0:03:00]}  Nf6 {[%clk 0:02:59]} 2. c4 {[%clk 0:03:00]}  e6 {[%clk 0:02:59]} 3. Nc3 {[%clk 0:03:01]}  Bb4 {[%clk 0:02:59]} 4. a3 {[%clk 0:03:01]}  Bxc3+ {[%clk 0:02:59]} 5. bxc3 {[%clk 0:03:02]}  b6 {[%clk 0:03:00]} 6. e3 {[%clk 0:03:00]}  O-O {[%clk 0:02:50]} 7. Bd3 {[%clk 0:02:59]}  Bb7 {[%clk 0:02:48]} 8. f3 {[%clk 0:02:59]}  d5 {[%clk 0:02:45]} 9. cxd5 {[%clk 0:02:57]}  exd5 {[%clk 0:02:45]} 10. Ne2 {[%clk 0:02:56]}  c5 {[%clk 0:02:44]} 11. O-O {[%clk 0:02:55]}  Re8 {[%clk 0:02:43]} 12. Ng3 {[%clk 0:02:54]}  Ba6 {[%clk 0:02:35]} 13. Ra2 {[%clk 0:02:53]}  Bxd3 {[%clk 0:02:33]} 14. Qxd3 {[%clk 0:02:53]}  Nc6 {[%clk 0:02:34]} 15. Rd2 {[%clk 0:02:47]}  Na5 {[%clk 0:02:24]} 16. e4 {[%clk 0:02:38]}  Nb3 {[%clk 0:02:02]} 17. Rdd1 {[%clk 0:02:28]}  Nxc1 {[%clk 0:01:35]} 18. Rxc1 {[%clk 0:02:28]}  dxe4 {[%clk 0:01:07]} 19. fxe4 {[%clk 0:02:26]}  cxd4 {[%clk 0:01:02]} 20. cxd4 {[%clk 0:02:26]}  Rc8 {[%clk 0:01:01]} 21. Rxc8 {[%clk 0:02:19]}  Qxc8 {[%clk 0:01:00]} 22. e5 {[%clk 0:02:19]}  Nd5 {[%clk 0:00:52]} 23. Nf5 {[%clk 0:02:16]}  Qe6 {[%clk 0:00:41]} 24. Qg3 {[%clk 0:02:07]}  Qg6 {[%clk 0:00:38]} 25. Qf3 {[%clk 0:01:46]}  Ne7 {[%clk 0:00:20]} 26. Nxe7+ {[%clk 0:01:44]} 1-0


[Site "https://www.chess.com"]

[Event "Titled Tuesday Blitz January 03 Late 2023"]
[White "Gomes, Luiz Alexandre de Souza"]
[Black "reevecanada"]
[WhiteFideId "2102790"]
[WhiteElo "2254"]
[BlackElo "2486"]
[Result "1-0"]
[Round "10"]
[TimeControl "180+2"]
[Date "2023.01.03"]
[WhiteClock "0:01:25"]
[BlackClock "0:01:03"]

1. e4 {[%clk 0:03:00]}  c5 {[%clk 0:02:59]} 2. Nf3 {[%clk 0:03:00]}  d6 {[%clk 0:02:59]} 3. d4 {[%clk 0:03:01]}  cxd4 {[%clk 0:02:59]} 4. Nxd4 {[%clk 0:03:01]}  Nf6 {[%clk 0:03:00]} 5. Nc3 {[%clk 0:03:02]}  a6 {[%clk 0:03:00]} 6. Rg1 {[%clk 0:03:02]}  e5 {[%clk 0:03:00]} 7. Nb3 {[%clk 0:03:03]}  Be7 {[%clk 0:02:59]} 8. g4 {[%clk 0:03:03]}  Be6 {[%clk 0:02:59]} 9. g5 {[%clk 0:03:03]}  Nfd7 {[%clk 0:02:58]} 10. Be3 {[%clk 0:03:03]}  Nc6 {[%clk 0:02:58]} 11. Qd2 {[%clk 0:03:04]}  b5 {[%clk 0:02:57]} 12. O-O-O {[%clk 0:03:03]}  Nc5 {[%clk 0:02:57]} 13. Kb1 {[%clk 0:03:01]}  Qc7 {[%clk 0:02:51]} 14. f4 {[%clk 0:03:01]}  exf4 {[%clk 0:02:48]} 15. Bxf4 {[%clk 0:03:01]}  Ne5 {[%clk 0:02:48]} 16. Nd5 {[%clk 0:02:58]}  Qc6 {[%clk 0:02:45]} 17. Na5 {[%clk 0:02:50]}  Qc8 {[%clk 0:02:09]} 18. Nxe7 {[%clk 0:02:49]}  Nxe4 {[%clk 0:01:52]} 19. Nxc8 {[%clk 0:02:36]}  Nxd2+ {[%clk 0:01:50]} 20. Rxd2 {[%clk 0:02:36]}  Nf3 {[%clk 0:01:47]} 21. Nxd6+ {[%clk 0:02:34]}  Ke7 {[%clk 0:01:46]} 22. Nc6+ {[%clk 0:02:21]}  Kf8 {[%clk 0:01:38]} 23. Rg3 {[%clk 0:02:12]}  Nxd2+ {[%clk 0:01:37]} 24. Bxd2 {[%clk 0:02:13]}  Bd5 {[%clk 0:01:31]} 25. Nb4 {[%clk 0:02:11]}  Be6 {[%clk 0:01:30]} 26. Bd3 {[%clk 0:02:04]}  Kg8 {[%clk 0:01:26]} 27. Nf5 {[%clk 0:01:54]}  a5 {[%clk 0:01:22]} 28. Nc6 {[%clk 0:01:54]}  b4 {[%clk 0:01:14]} 29. Ncd4 {[%clk 0:01:51]}  Bd5 {[%clk 0:01:09]} 30. Ne7+ {[%clk 0:01:50]}  Kf8 {[%clk 0:01:09]} 31. Nxd5 {[%clk 0:01:51]}  Rd8 {[%clk 0:01:08]} 32. Bc4 {[%clk 0:01:46]}  g6 {[%clk 0:01:05]} 33. b3 {[%clk 0:01:45]}  Kg7 {[%clk 0:01:04]} 34. c3 {[%clk 0:01:43]}  Rhe8 {[%clk 0:01:02]} 35. cxb4 {[%clk 0:01:41]}  axb4 {[%clk 0:01:02]} 36. Bxb4 {[%clk 0:01:41]}  h6 {[%clk 0:01:00]} 37. h4 {[%clk 0:01:40]}  hxg5 {[%clk 0:00:59]} 38. hxg5 {[%clk 0:01:41]}  Rh8 {[%clk 0:00:59]} 39. Bc3 {[%clk 0:01:40]}  Rh1+ {[%clk 0:01:00]} 40. Kb2 {[%clk 0:01:40]}  Rh2+ {[%clk 0:01:00]} 41. Nc2+ {[%clk 0:01:36]}  Kg8 {[%clk 0:01:00]} 42. Rf3 {[%clk 0:01:32]}  Rf8 {[%clk 0:00:58]} 43. Nf6+ {[%clk 0:01:30]}  Kg7 {[%clk 0:00:59]} 44. Nd7+ {[%clk 0:01:31]}  Kg8 {[%clk 0:00:58]} 45. Nxf8 {[%clk 0:01:30]}  Kxf8 {[%clk 0:00:59]} 46. Rxf7+ {[%clk 0:01:30]}  Ke8 {[%clk 0:01:00]} 47. Rb7 {[%clk 0:01:28]}  Kf8 {[%clk 0:01:01]} 48. a4 {[%clk 0:01:28]}  Rxc2+ {[%clk 0:00:59]} 49. Kxc2 {[%clk 0:01:27]}  Ke8 {[%clk 0:01:00]} 50. a5 {[%clk 0:01:27]}  Kd8 {[%clk 0:01:01]} 51. a6 {[%clk 0:01:27]}  Kc8 {[%clk 0:01:01]} 52. Be6+ {[%clk 0:01:25]}  Kd8 {[%clk 0:01:02]} 53. a7 {[%clk 0:01:25]}  Ke8 {[%clk 0:01:03]} 54. a8=Q# {[%clk 0:01:25]} 1-0


[Site "https://www.chess.com"]

[Event "Titled Tuesday Blitz January 03 Late 2023"]
[White "Goroshkov, Maksym"]
[Black "Papayan, Oleg"]
[WhiteFideId "14142716"]
[BlackFideId "4193911"]
[WhiteElo "2287"]
[BlackElo "2253"]
[Result "0-1"]
[Round "10"]
[TimeControl "180+2"]
[Date "2023.01.03"]
[WhiteClock "0:01:33"]
[BlackClock "0:00:13"]

1. e4 {[%clk 0:03:00]}  e5 {[%clk 0:02:55]} 2. d4 {[%clk 0:03:00]}  exd4 {[%clk 0:02:55]} 3. c3 {[%clk 0:03:01]}  Qe7 {[%clk 0:02:56]} 4. cxd4 {[%clk 0:02:52]}  Qxe4+ {[%clk 0:02:55]} 5. Be3 {[%clk 0:02:52]}  Nf6 {[%clk 0:02:55]} 6. Nc3 {[%clk 0:02:53]}  Bb4 {[%clk 0:02:55]} 7. Nf3 {[%clk 0:02:53]}  Nd5 {[%clk 0:02:55]} 8. Bd3 {[%clk 0:02:38]}  Nxe3 {[%clk 0:02:27]} 9. Bxe4 {[%clk 0:02:29]}  Nxd1 {[%clk 0:02:27]} 10. Kxd1 {[%clk 0:02:30]}  c6 {[%clk 0:02:14]} 11. Re1 {[%clk 0:02:27]}  O-O {[%clk 0:02:12]} 12. d5 {[%clk 0:02:20]}  d6 {[%clk 0:02:09]} 13. Nd4 {[%clk 0:02:14]}  Bg4+ {[%clk 0:01:42]} 14. f3 {[%clk 0:02:13]}  Bd7 {[%clk 0:01:43]} 15. Rc1 {[%clk 0:01:59]}  cxd5 {[%clk 0:01:10]} 16. Bxd5 {[%clk 0:01:55]}  Nc6 {[%clk 0:01:10]} 17. Ndb5 {[%clk 0:01:51]}  a6 {[%clk 0:00:59]} 18. a3 {[%clk 0:01:47]}  Bc5 {[%clk 0:00:38]} 19. b4 {[%clk 0:01:47]}  axb5 {[%clk 0:00:17]} 20. bxc5 {[%clk 0:01:47]}  dxc5 {[%clk 0:00:09]} 21. Nxb5 {[%clk 0:01:47]}  Ra5 {[%clk 0:00:10]} 22. Rxc5 {[%clk 0:01:46]}  Nd4 {[%clk 0:00:08]} 23. Nxd4 {[%clk 0:01:44]}  Rxc5 {[%clk 0:00:09]} 24. Be4 {[%clk 0:01:45]}  Bc6 {[%clk 0:00:08]} 25. Nxc6 {[%clk 0:01:43]}  bxc6 {[%clk 0:00:09]} 26. Kd2 {[%clk 0:01:43]}  Rd8+ {[%clk 0:00:10]} 27. Ke3 {[%clk 0:01:43]}  Rc3+ {[%clk 0:00:10]} 28. Kf4 {[%clk 0:01:44]}  Rxa3 {[%clk 0:00:11]} 29. Bxc6 {[%clk 0:01:44]}  Ra7 {[%clk 0:00:10]} 30. Kg3 {[%clk 0:01:45]}  g6 {[%clk 0:00:09]} 31. Bb5 {[%clk 0:01:44]}  Kg7 {[%clk 0:00:09]} 32. Bc4 {[%clk 0:01:44]}  Rc7 {[%clk 0:00:09]} 33. Bb3 {[%clk 0:01:44]}  Rcd7 {[%clk 0:00:09]} 34. Rc1 {[%clk 0:01:42]}  Re7 {[%clk 0:00:08]} 35. Rc6 {[%clk 0:01:39]}  Rdd7 {[%clk 0:00:08]} 36. Ra6 {[%clk 0:01:36]}  Rc7 {[%clk 0:00:08]} 37. Kh3 {[%clk 0:01:34]}  Ra7 {[%clk 0:00:09]} 38. Rc6 {[%clk 0:01:33]}  Rec7 {[%clk 0:00:09]} 39. Rd6 {[%clk 0:01:33]}  Rd7 {[%clk 0:00:09]} 40. Rc6 {[%clk 0:01:33]}  Rab7 {[%clk 0:00:10]} 41. Ba2 {[%clk 0:01:33]}  h5 {[%clk 0:00:10]} 42. Kg3 {[%clk 0:01:32]}  Rdc7 {[%clk 0:00:10]} 43. Rd6 {[%clk 0:01:33]}  Rb2 {[%clk 0:00:10]} 44. Bd5 {[%clk 0:01:31]}  Rcc2 {[%clk 0:00:10]} 45. Rd7 {[%clk 0:01:25]}  Rxg2+ {[%clk 0:00:10]} 46. Kf4 {[%clk 0:01:26]}  Rb4+ {[%clk 0:00:10]} 47. Ke3 {[%clk 0:01:25]}  Rxh2 {[%clk 0:00:09]} 48. Rxf7+ {[%clk 0:01:25]}  Kh6 {[%clk 0:00:09]} 49. f4 {[%clk 0:01:24]}  Rh3+ {[%clk 0:00:09]} 50. Kd2 {[%clk 0:01:23]}  Rd4+ {[%clk 0:00:09]} 51. Ke2 {[%clk 0:01:23]}  Rxd5 {[%clk 0:00:09]} 52. Rf8 {[%clk 0:01:24]}  Rf5 {[%clk 0:00:08]} 53. Rh8+ {[%clk 0:01:25]}  Kg7 {[%clk 0:00:08]} 54. Ra8 {[%clk 0:01:26]}  Rh4 {[%clk 0:00:08]} 55. Ra7+ {[%clk 0:01:27]}  Rf7 {[%clk 0:00:08]} 56. Ra8 {[%clk 0:01:27]}  Rhxf4 {[%clk 0:00:08]} 57. Ra5 {[%clk 0:01:28]}  R4f5 {[%clk 0:00:08]} 58. Ra4 {[%clk 0:01:29]}  g5 {[%clk 0:00:08]} 59. Ke3 {[%clk 0:01:29]}  h4 {[%clk 0:00:08]} 60. Ra1 {[%clk 0:01:29]}  h3 {[%clk 0:00:09]} 61. Rg1 {[%clk 0:01:29]}  Rf3+ {[%clk 0:00:09]} 62. Ke4 {[%clk 0:01:29]}  Kg6 {[%clk 0:00:10]} 63. Ra1 {[%clk 0:01:29]}  R7f4+ {[%clk 0:00:10]} 64. Ke5 {[%clk 0:01:29]}  h2 {[%clk 0:00:11]} 65. Ra6+ {[%clk 0:01:29]}  Rf6 {[%clk 0:00:11]} 66. Ra8 {[%clk 0:01:30]}  h1=Q {[%clk 0:00:10]} 67. Rg8+ {[%clk 0:01:31]}  Kf7 {[%clk 0:00:11]} 68. Rg6 {[%clk 0:01:31]}  R3f5+ {[%clk 0:00:11]} 69. Kd4 {[%clk 0:01:31]}  Qd5+ {[%clk 0:00:11]} 70. Ke3 {[%clk 0:01:32]}  Rf3+ {[%clk 0:00:11]} 71. Ke2 {[%clk 0:01:32]}  Qd3+ {[%clk 0:00:12]} 72. Ke1 {[%clk 0:01:33]}  Rf1# {[%clk 0:00:13]} 0-1


[Site "https://www.chess.com"]

[Event "Titled Tuesday Blitz January 03 Late 2023"]
[White "Moreno Perez, Tobias Sebastian"]
[Black "Chor, Kevin"]
[WhiteFideId "186716"]
[BlackFideId "2090740"]
[WhiteElo "2256"]
[BlackElo "1944"]
[Result "1-0"]
[Round "10"]
[TimeControl "180+2"]
[Date "2023.01.03"]
[WhiteClock "0:00:12"]
[BlackClock "0:00:27"]

1. d4 {[%clk 0:03:00]}  Nf6 {[%clk 0:02:57]} 2. Bf4 {[%clk 0:03:00]}  g6 {[%clk 0:02:56]} 3. Nc3 {[%clk 0:02:58]}  d5 {[%clk 0:02:41]} 4. Nb5 {[%clk 0:02:57]}  Na6 {[%clk 0:02:40]} 5. e3 {[%clk 0:02:56]}  c6 {[%clk 0:02:37]} 6. Nc3 {[%clk 0:02:56]}  Nc7 {[%clk 0:02:37]} 7. Nf3 {[%clk 0:02:54]}  Bg7 {[%clk 0:02:37]} 8. h3 {[%clk 0:02:54]}  O-O {[%clk 0:02:34]} 9. Be2 {[%clk 0:02:53]}  Bf5 {[%clk 0:02:17]} 10. O-O {[%clk 0:02:44]}  Ne4 {[%clk 0:02:16]} 11. Nxe4 {[%clk 0:02:42]}  Bxe4 {[%clk 0:02:16]} 12. Nd2 {[%clk 0:02:34]}  Bf5 {[%clk 0:02:16]} 13. c4 {[%clk 0:02:34]}  Qd7 {[%clk 0:02:01]} 14. Rc1 {[%clk 0:02:29]}  Rac8 {[%clk 0:01:54]} 15. cxd5 {[%clk 0:01:51]}  Nxd5 {[%clk 0:01:45]} 16. Bh2 {[%clk 0:01:49]}  Nb4 {[%clk 0:01:44]} 17. Qb3 {[%clk 0:01:46]}  a5 {[%clk 0:01:39]} 18. a3 {[%clk 0:01:36]}  Be6 {[%clk 0:01:39]} 19. Bc4 {[%clk 0:01:36]}  Nd5 {[%clk 0:01:17]} 20. Ne4 {[%clk 0:01:26]}  b5 {[%clk 0:01:06]} 21. Bxd5 {[%clk 0:01:24]}  Bxd5 {[%clk 0:01:03]} 22. Qc2 {[%clk 0:01:23]}  Bc4 {[%clk 0:00:58]} 23. Rfd1 {[%clk 0:01:19]}  a4 {[%clk 0:00:59]} 24. Nd2 {[%clk 0:00:57]}  Be6 {[%clk 0:00:51]} 25. Re1 {[%clk 0:00:47]}  Rfd8 {[%clk 0:00:45]} 26. Qc5 {[%clk 0:00:43]}  Bd5 {[%clk 0:00:40]} 27. Nb1 {[%clk 0:00:31]}  Bf8 {[%clk 0:00:39]} 28. Qc2 {[%clk 0:00:28]}  e6 {[%clk 0:00:35]} 29. Nc3 {[%clk 0:00:27]}  Bb3 {[%clk 0:00:35]} 30. Qe2 {[%clk 0:00:26]}  b4 {[%clk 0:00:31]} 31. Ne4 {[%clk 0:00:23]}  Kg7 {[%clk 0:00:31]} 32. Be5+ {[%clk 0:00:22]}  Kh6 {[%clk 0:00:28]} 33. Qg4 {[%clk 0:00:19]}  Be7 {[%clk 0:00:28]} 34. Qf4+ {[%clk 0:00:17]}  g5 {[%clk 0:00:28]} 35. Qxf7 {[%clk 0:00:15]}  Rg8 {[%clk 0:00:27]} 36. Nf6 {[%clk 0:00:12]} 1-0


[Site "https://www.chess.com"]

[Event "Titled Tuesday Blitz January 03 Late 2023"]
[White "Carbone, Diego"]
[Black "Estrada Nieto, Julian"]
[WhiteFideId "3002179"]
[BlackFideId "5101018"]
[WhiteElo "2336"]
[BlackElo "2215"]
[Result "1-0"]
[Round "10"]
[TimeControl "180+2"]
[Date "2023.01.03"]
[WhiteClock "0:00:32"]
[BlackClock "0:00:01"]

1. d4 {[%clk 0:03:00]}  d5 {[%clk 0:02:58]} 2. Nf3 {[%clk 0:03:00]}  Nf6 {[%clk 0:02:58]} 3. c4 {[%clk 0:03:00]}  dxc4 {[%clk 0:02:59]} 4. e3 {[%clk 0:02:57]}  e6 {[%clk 0:02:59]} 5. Bxc4 {[%clk 0:02:57]}  a6 {[%clk 0:03:00]} 6. a4 {[%clk 0:02:51]}  c5 {[%clk 0:03:00]} 7. O-O {[%clk 0:02:51]}  Nc6 {[%clk 0:03:01]} 8. Qe2 {[%clk 0:02:51]}  Be7 {[%clk 0:03:00]} 9. Rd1 {[%clk 0:02:51]}  Qc7 {[%clk 0:03:00]} 10. Nc3 {[%clk 0:02:46]}  O-O {[%clk 0:02:58]} 11. d5 {[%clk 0:02:39]}  exd5 {[%clk 0:02:58]} 12. Nxd5 {[%clk 0:02:40]}  Nxd5 {[%clk 0:02:56]} 13. Bxd5 {[%clk 0:02:41]}  Nb4 {[%clk 0:02:50]} 14. Bc4 {[%clk 0:02:29]}  Bf6 {[%clk 0:02:34]} 15. e4 {[%clk 0:02:21]}  Bg4 {[%clk 0:02:33]} 16. h3 {[%clk 0:02:18]}  Bxf3 {[%clk 0:02:30]} 17. Qxf3 {[%clk 0:02:17]}  Nc2 {[%clk 0:02:27]} 18. Rb1 {[%clk 0:02:15]}  Nd4 {[%clk 0:02:27]} 19. Qg4 {[%clk 0:02:08]}  Rad8 {[%clk 0:01:57]} 20. Bf4 {[%clk 0:02:07]}  Be5 {[%clk 0:01:57]} 21. Bg5 {[%clk 0:02:00]}  Rd6 {[%clk 0:01:18]} 22. f4 {[%clk 0:01:53]}  Rg6 {[%clk 0:01:04]} 23. fxe5 {[%clk 0:01:52]}  Qxe5 {[%clk 0:01:04]} 24. h4 {[%clk 0:01:51]}  h6 {[%clk 0:01:03]} 25. Qf4 {[%clk 0:01:14]}  Rxg5 {[%clk 0:00:57]} 26. Qxe5 {[%clk 0:01:02]}  Rxe5 {[%clk 0:00:57]} 27. Bd5 {[%clk 0:01:03]}  b6 {[%clk 0:00:49]} 28. a5 {[%clk 0:00:58]}  bxa5 {[%clk 0:00:43]} 29. Ra1 {[%clk 0:00:56]}  Kh7 {[%clk 0:00:26]} 30. Rxa5 {[%clk 0:00:52]}  f5 {[%clk 0:00:26]} 31. Rxc5 {[%clk 0:00:50]}  fxe4 {[%clk 0:00:11]} 32. Bg8+ {[%clk 0:00:50]}  Kxg8 {[%clk 0:00:08]} 33. Rxe5 {[%clk 0:00:51]}  Nf5 {[%clk 0:00:01]} 34. Rxe4 {[%clk 0:00:50]}  Ng3 {[%clk 0:00:02]} 35. Re7 {[%clk 0:00:48]}  Nf5 {[%clk 0:00:01]} 36. Re4 {[%clk 0:00:45]}  Ng3 {[%clk 0:00:02]} 37. Ra4 {[%clk 0:00:43]}  Rf6 {[%clk 0:00:01]} 38. Rd7 {[%clk 0:00:38]}  Kh7 {[%clk 0:00:01]} 39. Rg4 {[%clk 0:00:34]}  Ne2+ {[%clk 0:00:01]} 40. Kh2 {[%clk 0:00:32]} 1-0


[Site "https://www.chess.com"]